[Event "EYTCC Open U18 2018"]
[Site "Bad Blankeburg"]
[Date "2018.07.14"]
[Round "3"]
[White "Morgunov, Marc"]
[Black "Teclaf, Pawel"]
[Result "1/2-1/2"]
[ECO "C04"]
[WhiteElo "2362"]
[BlackElo "2399"]
[Annotator "NA"]
[PlyCount "88"]
[EventDate "2018.07.12"]
[EventType "swiss"]
[EventCountry "GER"]
[SourceTitle "playchess.com"]
[Source "ChessBase"]
[SourceQuality "1"]
[TimeControl "40/5400+30:1800+30"]

1. e4 {[%emt 0:00:00]} e6 {[%emt 0:00:00]} 2. d4 {[%emt 0:00:00]} d5 {[%emt 0:00:00]} 3. Nd2 {[%emt 0:00:20]} Nc6 {[%emt 0:00:00]} 4. Ngf3 {[%emt 0:01:18]} Nf6 {[%emt 0:00:02]} 5. e5 {[%emt 0:01:31]} Nd7 {[%emt 0:00:01]} 6. c3 {[%emt 0:01:40]} Be7 {[%emt 0:30:11]} 7. Bd3 {[%emt 0:02:19]} f6 {[%emt 0:16:38]} (7... Ncb8 $14) 8. exf6 {[%emt 0:05:58] LiveBook: 5 Games} Bxf6 {[%emt 0:01:36]} 9. O-O {[%emt 0:01:20]} O-O {[%emt 0:03:51]} 10. Re1 {[%emt 0:04:50]} Re8 {[%emt 0:05:37]} 11. b4 {[%emt 0:07:39]} a6 $16 {[%emt 0:03:44]} 12. Qb3 {[%emt 0:00:26]} b5 {[%emt 0:01:23]} 13. Nf1 {[%emt 0:03:47]} Bb7 {[%emt 0:07:44]} 14. Qc2 {[%emt 0:02:03]} h6 {[%emt 0:02:39]} 15. Qb3 {[%emt 0:15:46]} Kh8 {[%emt 0:03:01]} 16. Ng3 {[%emt 0:01:16]} e5 {[%emt 0:02:08]} 17. Bg6 {[%emt 0:03:53]} Rf8 {[%emt 0:01:00]} 18. Qxd5 {[%emt 0:02:22]} Be7 {[%emt 0:06:55]} 19. dxe5 {[%emt 0:07:40]} Ndxe5 {[%emt 0:01:48]} 20. Rxe5 {[%emt 0:00:37]} Rxf3 {[%emt 0:01:41]} 21. Qxf3 {[%emt 0:08:01]} Nxe5 {[%emt 0:00:01]} 22. Qxb7 {[%emt 0:00:35]} Nxg6 {[%emt 0:00:02]} 23. Qe4 {[%emt 0:02:54]} Qe8 {[%emt 0:00:30]} 24. Bd2 {[%emt 0:07:26]} Rd8 {[%emt 0:02:35]} 25. Qc2 {[%emt 0:03:40]} Qc6 {[%emt 0:02:28]} 26. Re1 {[%emt 0:02:05]} Bxb4 {[%emt 0:00:25]} 27. Qf5 {[%emt 0:03:57]} Nh4 {[%emt 0:03:03]} 28. Qh3 {[%emt 0:00:07]} Rxd2 {[%emt 0:02:47]} 29. cxb4 {[%emt 0:00:42]} Ng6 {[%emt 0:00:11]} 30. Qf5 {[%emt 0:02:10]} Qc2 {[%emt 0:00:48]} 31. Qf7 {[%emt 0:00:22]} Rd1 {[%emt 0:00:23]} 32. Rxd1 {[%emt 0:00:36]} Qxd1+ {[%emt 0:00:01]} 33. Nf1 {[%emt 0:00:08]} Qd6 {[%emt 0:00:36]} 34. Ne3 {[%emt 0:01:16]} Kh7 {[%emt 0:00:42]} 35. g3 {[%emt 0:02:08]} Qxb4 {[%emt 0:01:06]} 36. h4 {[%emt 0:01:24]} Ne7 {[%emt 0:01:00]} 37. Kh2 {[%emt 0:00:51]} Qe4 {[%emt 0:00:30]} 38. Ng2 {[%emt 0:01:59]} Nd5 {[%emt 0:01:07]} 39. h5 {[%emt 0:01:27]} Nf6 {[%emt 0:00:28]} 40. Nh4 {[%emt 0:01:34]} Ng4+ {[%emt 0:00:38]} 41. Kg1 {[%emt 0:30:51]} Qb1+ {[%emt 0:02:52]} 42. Kg2 {[%emt 0:00:00]} Qe4+ {[%emt 0:00:01]} 43. Kg1 {[%emt 0:00:00]} Qe1+ {[%emt 0:05:31]} 44. Kg2 {[%emt 0:00:00]} Qe4+ {[%emt 0:10:19]} 1/2-1/2

[Event "EYTCC Open U18 2018"]
[Site "Bad Blankeburg"]
[Date "2018.07.14"]
[Round "3"]
[White "Buckels, Valentin"]
[Black "Riess, Alexander"]
[Result "1-0"]
[ECO "D70"]
[WhiteElo "2353"]
[BlackElo "2292"]
[Annotator "NA"]
[PlyCount "129"]
[EventDate "2018.07.12"]
[EventType "swiss"]
[EventCountry "GER"]
[SourceTitle "playchess.com"]
[Source "ChessBase"]
[SourceQuality "1"]
[TimeControl "40/5400+30:1800+30"]

1. d4 {[%emt 0:00:00]} Nf6 {[%emt 0:00:00]} 2. c4 {[%emt 0:00:00]} g6 {[%emt 0:00:00]} 3. Nf3 {[%emt 0:00:00]} Bg7 {[%emt 0:00:00]} 4. g3 {[%emt 0:00:00]} d5 {[%emt 0:00:08]} 5. cxd5 {[%emt 0:00:02]} Nxd5 {[%emt 0:00:06]} 6. Bg2 {[%emt 0:00:11]} Nb6 {[%emt 0:00:08]} 7. Nc3 {[%emt 0:00:39]} Nc6 {[%emt 0:00:19]} 8. e3 {[%emt 0:00:13]} O-O {[%emt 0:00:14]} 9. O-O {[%emt 0:00:06]} Re8 {[%emt 0:00:18]} 10. a3 {[%emt 0:00:22]} e5 {[%emt 0:00:41]} 11. d5 {[%emt 0:00:11]} Na5 {[%emt 0:00:25]} 12. Qc2 {[%emt 0:00:18]} Bd7 {[%emt 0:07:50]} 13. Rd1 {[%emt 0:12:46]} e4 {[%emt 0:07:20]} 14. Nd4 {[%emt 0:05:28]} Bg4 {[%emt 0:16:47]} 15. Re1 {[%emt 0:13:44]} Nxd5 {[%emt 0:19:22]} 16. Nxe4 {[%emt 0:08:05]} c5 {[%emt 0:09:23]} 17. Nb5 {[%emt 0:07:01]} Bf8 {[%emt 0:08:42]} 18. Bd2 {[%emt 0:07:04]} Qb6 {[%emt 0:08:05]} 19. Nbc3 {[%emt 0:03:32]} Nxc3 {[%emt 0:01:56]} 20. Bxc3 {[%emt 0:08:34]} Bf5 {[%emt 0:01:50]} 21. Bxa5 {[%emt 0:01:32]} Bxe4 {[%emt 0:04:54]} 22. Bxe4 {[%emt 0:00:11]} Qxa5 {[%emt 0:00:05]} 23. Bxb7 {[%emt 0:00:55]} Rab8 {[%emt 0:02:12]} 24. Bd5 {[%emt 0:08:06]} Bg7 {[%emt 0:01:06]} 25. Reb1 {[%emt 0:00:21]} Red8 {[%emt 0:03:18]} 26. e4 {[%emt 0:01:46]} Rdc8 {[%emt 0:04:28]} 27. Ra2 {[%emt 0:02:05]} Qb6 {[%emt 0:01:18]} 28. b3 {[%emt 0:00:39]} Bd4 {[%emt 0:00:13]} 29. Qc4 {[%emt 0:00:40]} Rc7 {[%emt 0:00:30]} 30. Kg2 {[%emt 0:01:12]} Kg7 {[%emt 0:00:06]} 31. Rd1 {[%emt 0:01:41]} a5 {[%emt 0:00:42]} 32. Rd3 {[%emt 0:00:33]} Re7 {[%emt 0:01:07]} 33. Rf3 {[%emt 0:01:49]} f6 {[%emt 0:00:08]} 34. Rd3 {[%emt 0:01:10]} Rbe8 {[%emt 0:01:17]} 35. b4 {[%emt 0:01:21]} axb4 {[%emt 0:00:13]} 36. axb4 {[%emt 0:00:10]} Rb8 {[%emt 0:01:01]} 37. bxc5 {[%emt 0:13:46]} Bxc5 {[%emt 0:00:10]} 38. Rc3 {[%emt 0:01:51]} Bd4 {[%emt 0:00:51]} 39. Rd3 {[%emt 0:00:22]} Bc5 {[%emt 0:00:10]} 40. Rc2 {[%emt 0:00:22]} Rc7 {[%emt 0:01:30]} 41. Rdc3 {[%emt 0:06:32]} Bd6 {[%emt 0:07:46]} 42. Qxc7+ {[%emt 0:07:48]} Bxc7 {[%emt 0:00:10]} 43. Rxc7+ {[%emt 0:00:02]} Kh6 {[%emt 0:02:15]} 44. Rf7 {[%emt 0:00:28]} Qd4 {[%emt 0:05:34]} 45. Rcc7 {[%emt 0:00:34]} Rh8 {[%emt 0:00:12]} 46. Rc6 {[%emt 0:00:40]} f5 {[%emt 0:01:25]} 47. Rxf5 {[%emt 0:02:03]} Rc8 {[%emt 0:06:33]} 48. Ra6 {[%emt 0:05:33]} Qd3 {[%emt 0:02:09]} 49. Rff6 {[%emt 0:02:23]} Rc1 {[%emt 0:01:07]} 50. Kh3 {[%emt 0:08:04]} Qf1+ {[%emt 0:03:18]} 51. Kh4 {[%emt 0:00:27]} Qe2 {[%emt 0:01:25]} 52. g4 {[%emt 0:01:38]} Rg1 {[%emt 0:00:38]} 53. h3 {[%emt 0:00:36]} Qd3 {[%emt 0:04:05]} 54. Rab6 {[%emt 0:00:32]} Qd4 {[%emt 0:00:21]} 55. Ra6 {[%emt 0:00:47]} Qd3 {[%emt 0:00:33]} 56. Rab6 {[%emt 0:00:06]} Qd4 {[%emt 0:00:39]} 57. Ra6 {[%emt 0:00:02]} Qd3 {[%emt 0:00:38]} 58. Rab6 {[%emt 0:00:10]} Qd4 {[%emt 0:00:30]} 59. Rbc6 {[%emt 0:01:07]} Qd2 {[%emt 0:00:41]} 60. Rf5 {[%emt 0:00:29]} Qd4 {[%emt 0:00:24]} 61. Rh5+ {[%emt 0:00:32]} Kg7 {[%emt 0:00:01]} 62. Rc7+ {[%emt 0:00:12]} Kf8 {[%emt 0:00:18]} 63. Rf7+ {[%emt 0:00:33]} Ke8 {[%emt 0:00:04]} 64. Rhxh7 {[%emt 0:00:11]} Qe5 {[%emt 0:01:13]} 65. Bc6+ {[%emt 0:00:09]} 1-0

[Event "EYTCC Open U18 2018"]
[Site "Bad Blankeburg"]
[Date "2018.07.14"]
[Round "3"]
[White "Stoleriu, George"]
[Black "Badelka, Olga"]
[Result "1/2-1/2"]
[ECO "B24"]
[WhiteElo "2347"]
[BlackElo "2407"]
[Annotator "NA"]
[PlyCount "77"]
[EventDate "2018.07.12"]
[EventType "swiss"]
[EventCountry "GER"]
[SourceTitle "playchess.com"]
[Source "ChessBase"]
[SourceQuality "1"]
[TimeControl "40/5400+30:1800+30"]

1. e4 {[%emt 0:00:00]} c5 {[%emt 0:00:00]} 2. Nc3 {[%emt 0:00:00]} Nc6 {[%emt 0:00:00]} 3. Bb5 {[%emt 0:00:00]} Nd4 {[%emt 0:00:00]} 4. Bc4 {[%emt 0:00:00]} e6 {[%emt 0:00:00]} 5. Nge2 {[%emt 0:00:05]} Nf6 {[%emt 0:00:16]} 6. O-O {[%emt 0:00:25] LiveBook: 301 Games B23: Closed Sicilian: Lines without g3} a6 {[%emt 0:00:07]} 7. Bb3 {[%emt 0:00:18]} (7. a4 d5 8. exd5 exd5 9. Ba2 Bd6 10. d3 O-O 11. Nxd4 cxd4 12. Ne2 Bg4 13. h3 Bxe2 14. Qxe2 Re8 15. Qf3 Re5 16. Bd2 Qd7 17. Rae1 Qxa4 18. Rxe5 Bxe5 19. Bb3 Qd7 20. Bg5 {½-½ (20) Pirs,M (2526)-Brodda,W (2591) GER email 2016}) 7... Nxb3 {[%emt 0:00:53]} 8. axb3 {[%emt 0:00:09]} d6 {[%emt 0:00:48]} 9. d3 {[%emt 0:00:45]} Be7 {[%emt 0:01:56]} 10. f4 {[%emt 0:02:38]} Qc7 $146 {[%emt 0:02:19]} ({Predecessor:} 10... O-O 11. Ng3 d5 12. Qe2 d4 13. Nd1 a5 {½-½ (26) Fernandez Vicente,C (2470)-Felytin,L (2469) ICCF email 2015}) 11. Kh1 {[%emt 0:05:17]} Bd7 {[%emt 0:02:05]} 12. Ng1 {[%emt 0:07:35]} O-O {[%emt 0:02:19]} 13. Nf3 {[%emt 0:03:24]} Bc6 {[%emt 0:00:39]} 14. Qe1 {[%emt 0:12:09]} b5 {[%emt 0:04:21]} 15. Qg3 {[%emt 0:03:28]} Kh8 {[%emt 0:05:00]} 16. Qh3 {[%emt 0:03:05]} b4 {[%emt 0:04:00]} 17. Nd1 {[%emt 0:11:03]} a5 {[%emt 0:03:38]} 18. f5 $15 {[%emt 0:08:39]} (18. Ne3 $11) 18... exf5 {[%emt 0:04:31]} 19. Qxf5 {[%emt 0:01:24]} d5 {[%emt 0:06:06]} 20. e5 {[%emt 0:08:41]} Bd7 {[%emt 0:00:48]} 21. Qg5 {[%emt 0:00:57]} Ng8 {[%emt 0:01:48]} 22. Qg3 {[%emt 0:00:29]} Qc6 {[%emt 0:09:23]} 23. Ne3 {[%emt 0:02:42]} Nh6 {[%emt 0:00:48]} 24. Bd2 {[%emt 0:04:45]} Be6 {[%emt 0:17:40]} 25. Ng5 {[%emt 0:06:58]} d4 {[%emt 0:02:13]} 26. Nxe6 {[%emt 0:02:08]} fxe6 {[%emt 0:00:53]} 27. Nc4 {[%emt 0:01:14]} Rxf1+ {[%emt 0:02:19]} 28. Rxf1 {[%emt 0:00:05]} Nf5 {[%emt 0:00:03]} 29. Qf3 {[%emt 0:01:11]} Qxf3 {[%emt 0:01:37]} 30. Rxf3 {[%emt 0:00:36]} Kg8 {[%emt 0:01:08]} 31. Rf1 {[%emt 0:02:20]} Ra7 {[%emt 0:01:54]} 32. g3 {[%emt 0:02:08]} Bd8 {[%emt 0:00:40]} 33. Kg2 h5 {[%emt 0:02:14]} 34. h3 {[%emt 0:04:44]} Rf7 {[%emt 0:00:56]} 35. Rf2 {[%emt 0:03:04]} Ra7 {[%emt 0:03:33]} 36. Rf1 Rf7 {[%emt 0:00:50]} 37. Rf2 {[%emt 0:02:37]} Ra7 {[%emt 0:01:44]} 38. Rf1 {[%emt 0:02:10]} Rf7 {[%emt 0:00:06]} 39. Rf2 {[%emt 0:00:53]} 1/2-1/2

[Event "EYTCC Open U18 2018"]
[Site "Bad Blankeburg"]
[Date "2018.07.14"]
[Round "3"]
[White "Szustakowski, Antoni"]
[Black "Morgunov, Daniel"]
[Result "1-0"]
[ECO "E97"]
[WhiteElo "2330"]
[BlackElo "2346"]
[Annotator "NA"]
[PlyCount "51"]
[EventDate "2018.07.12"]
[EventType "swiss"]
[EventCountry "GER"]
[SourceTitle "playchess.com"]
[Source "ChessBase"]
[SourceQuality "1"]
[TimeControl "40/5400+30:1800+30"]

1. d4 {[%emt 0:00:00]} Nf6 {[%emt 0:00:00]} 2. c4 {[%emt 0:00:00]} g6 {[%emt 0:00:00]} 3. Nc3 {[%emt 0:00:02]} Bg7 {[%emt 0:00:00]} 4. e4 {[%emt 0:00:09]} d6 {[%emt 0:00:02]} 5. Be2 {[%emt 0:00:06]} O-O {[%emt 0:00:05]} 6. Nf3 {[%emt 0:00:06]} e5 {[%emt 0:00:12]} 7. O-O {[%emt 0:00:07]} Nc6 {[%emt 0:01:18]} 8. d5 {[%emt 0:00:11]} Ne7 {[%emt 0:00:05]} 9. a4 {[%emt 0:00:08]} Nh5 {[%emt 0:04:40] LiveBook: 28 Games E97: King's Indian: Classical Main Line (6...e5 7 0-0 Nc6): 8 Be3 and 8 d5 Ne7, not 9 Ne1} 10. a5 {[%emt 0:00:08]} a6 {[%emt 0:09:44]} 11. Re1 {[%emt 0:06:49]} Nf4 $146 {[%emt 0:05:00]} ({Predecessor:} 11... h6 12. c5 Nf4 13. Bf1 g5 14. cxd6 cxd6 15. Nd2 f5 16. g3 Nfg6 17. Nc4 {0-1 (71) Matlakov,M (2696)-Gordievsky,D (2491) Kaliningrad 2015}) 12. Bf1 {[%emt 0:01:03]} f5 {[%emt 0:03:51]} 13. Ra3 {[%emt 0:12:42]} ({Günstiger ist} 13. Bxf4 $1 $16 exf4 14. e5) 13... h6 {[%emt 0:11:09]} 14. Bxf4 {[%emt 0:04:24]} exf4 {[%emt 0:02:33]} 15. e5 {[%emt 0:00:06]} dxe5 {[%emt 0:07:20]} 16. Nxe5 {[%emt 0:01:12]} Qd6 {[%emt 0:02:21] [#]} 17. Nd3 $1 {[%emt 0:02:46]} g5 {[%emt 0:01:22]} 18. c5 {[%emt 0:01:11]} Qf6 {[%emt 0:01:47]} (18... Qd8 $16 {keeps fighting.}) 19. Ne5 $18 {[%emt 0:04:11]} Re8 {[%emt 0:08:34]} 20. d6 {[%emt 0:14:18]} cxd6 {[%emt 0:01:43]} 21. cxd6 {[%emt 0:00:13]} Nc6 {[%emt 0:01:58]} 22. Nxc6 {[%emt 0:00:39]} Rxe1 {[%emt 0:00:12]} 23. Qxe1 {[%emt 0:00:02]} bxc6 {[%emt 0:01:31]} 24. Qe8+ {[%emt 0:00:09]} Bf8 {[%emt 0:03:01]} 25. d7 {[%emt 0:00:35]} Bb7 {[%emt 0:00:33]} 26. Rb3 {[%emt 0:00:01]} 1-0

[Event "EYTCC Open U18 2018"]
[Site "Bad Blankeburg"]
[Date "2018.07.14"]
[Round "3"]
[White "Amon, Nejc"]
[Black "Vanczak, Tamas"]
[Result "1-0"]
[ECO "B90"]
[WhiteElo "2295"]
[BlackElo "2339"]
[Annotator "NA"]
[PlyCount "83"]
[EventDate "2018.07.12"]
[EventType "swiss"]
[EventCountry "GER"]
[SourceTitle "playchess.com"]
[Source "ChessBase"]
[SourceQuality "1"]
[TimeControl "40/5400+30:1800+30"]

1. e4 {[%emt 0:00:00]} c5 {[%emt 0:00:00]} 2. Nf3 {[%emt 0:00:00]} d6 {[%emt 0:00:29]} 3. d4 {[%emt 0:00:00]} cxd4 {[%emt 0:00:08]} 4. Nxd4 {[%emt 0:00:10]} Nf6 {[%emt 0:00:20]} 5. Nc3 {[%emt 0:00:16]} a6 {[%emt 0:00:28]} 6. Be3 {[%emt 0:00:13]} e5 {[%emt 0:00:39]} 7. Nb3 {[%emt 0:00:16]} Be7 {[%emt 0:00:36]} 8. f3 {[%emt 0:00:43]} Be6 {[%emt 0:00:33]} 9. Qd2 {[%emt 0:00:14]} Nbd7 {[%emt 0:00:48]} 10. O-O-O {[%emt 0:00:20]} b5 {[%emt 0:01:05]} 11. g4 {[%emt 0:05:29]} h6 {[%emt 0:03:42]} 12. h4 {[%emt 0:14:23]} Nb6 {[%emt 0:05:43]} 13. Qf2 {[%emt 0:13:51]} Nfd7 {[%emt 0:07:57]} 14. Kb1 {[%emt 0:01:44]} Nc4 {[%emt 0:23:08] LiveBook: 30 Games} 15. Bxc4 {[%emt 0:00:24]} bxc4 {[%emt 0:01:13]} 16. Nc1 $16 {[%emt 0:02:03]} Rb8 {[%emt 0:04:47]} 17. N1e2 {[%emt 0:03:09]} Qa5 {[%emt 0:06:58]} 18. Ka1 {[%emt 0:09:20]} Qb4 {[%emt 0:02:11]} 19. Rb1 {[%emt 0:06:44]} O-O {[%emt 0:05:24]} 20. g5 {[%emt 0:05:06]} Kh7 {[%emt 0:08:35]} 21. f4 {[%emt 0:09:22]} exf4 {[%emt 0:02:17]} 22. Nxf4 {[%emt 0:02:58]} Ne5 {[%emt 0:01:36]} 23. Qg3 {[%emt 0:06:10]} Qb7 {[%emt 0:06:42]} 24. Rhg1 {[%emt 0:01:41]} Bg4 {[%emt 0:05:35]} 25. gxh6 {[%emt 0:02:57]} g6 {[%emt 0:05:36]} 26. Nfd5 {[%emt 0:01:57]} f6 {[%emt 0:02:08]} 27. Bd4 {[%emt 0:02:45]} Bh5 {[%emt 0:00:41]} 28. Nf4 {[%emt 0:02:52]} Rg8 {[%emt 0:00:38]} 29. Bxe5 {[%emt 0:01:20]} fxe5 {[%emt 0:02:03]} 30. Nxh5 {[%emt 0:03:03]} gxh5 {[%emt 0:00:01]} 31. Qh2 {[%emt 0:00:59]} Rxg1 {[%emt 0:01:02]} 32. Qxg1 {[%emt 0:00:02]} Rg8 {[%emt 0:01:41]} 33. Qf2 {[%emt 0:02:35]} Rf8 {[%emt 0:00:36]} 34. Qg3 {[%emt 0:00:55]} Rg8 {[%emt 0:00:57]} 35. Qf2 {[%emt 0:01:46]} Rf8 {[%emt 0:00:37]} 36. Qe2 {[%emt 0:00:06]} Kxh6 {[%emt 0:00:24]} 37. Rg1 {[%emt 0:01:22]} Bxh4 {[%emt 0:00:31]} 38. Qd2+ {[%emt 0:00:12]} Kh7 {[%emt 0:00:12]} 39. Qxd6 {[%emt 0:00:35]} Qf7 {[%emt 0:00:27]} 40. Qxe5 {[%emt 0:00:53]} Qf1+ {[%emt 0:00:26]} 41. Rxf1 {[%emt 0:30:06]} Rxf1+ {[%emt 0:30:08]} 42. Nb1 {[%emt 0:00:03]} 1-0

[Event "EYTCC Open U18 2018"]
[Site "Bad Blankeburg"]
[Date "2018.07.14"]
[Round "3"]
[White "Pajeken, Jakob Leon"]
[Black "Urban, Konstantin"]
[Result "1/2-1/2"]
[ECO "A49"]
[WhiteElo "2273"]
[BlackElo "2325"]
[Annotator "NA"]
[PlyCount "74"]
[EventDate "2018.07.12"]
[EventType "swiss"]
[EventCountry "GER"]
[SourceTitle "playchess.com"]
[Source "ChessBase"]
[SourceQuality "1"]
[TimeControl "40/5400+30:1800+30"]

1. d4 {[%emt 0:00:00]} Nf6 {[%emt 0:00:00]} 2. Nf3 {[%emt 0:00:00]} g6 {[%emt 0:00:00]} 3. g3 {[%emt 0:00:00]} Bg7 {[%emt 0:00:43]} 4. Bg2 {[%emt 0:00:00]} O-O {[%emt 0:00:26]} 5. O-O {[%emt 0:00:00]} d6 {[%emt 0:00:30]} 6. b3 {[%emt 0:00:09]} c5 {[%emt 0:06:45]} 7. c4 {[%emt 0:00:10]} e5 {[%emt 0:02:19] E60: King's Indian: Unusual lines and Fianchetto Variation without Nc3} (7... Nc6 8. Bb2 cxd4 9. Nxd4 Bd7 10. Nc3 Nxd4 11. Qxd4 Bc6 12. Qd2 Qa5 13. Rfd1 Bxg2 14. Kxg2 Rfc8 15. Qe3 Ng4 16. Qf3 Ne5 17. Qxb7 Rab8 18. Qd5 Nxc4 19. Qxa5 Nxa5 {½-½ (38) Dreev,A (2653)-Guseinov,G (2646) chess.com INT 2018}) 8. dxe5 {[%emt 0:00:11]} dxe5 {[%emt 0:00:20]} 9. Qxd8 {[%emt 0:00:10]} ({Much weaker is} 9. Nxe5 Nfd7 $15) 9... Rxd8 {[%emt 0:00:04]} 10. Bb2 {[%emt 0:00:08]} e4 {[%emt 0:01:31]} 11. Nfd2 {[%emt 0:00:34] LiveBook: 3 Partien} Bf5 {[%emt 0:03:55]} 12. g4 {[%emt 0:00:12]} Bxg4 {[%emt 0:01:06]} 13. Nxe4 {[%emt 0:00:08]} Nxe4 {[%emt 0:00:07]} 14. Bxg7 {[%emt 0:00:06]} Kxg7 {[%emt 0:01:22]} 15. Bxe4 {[%emt 0:00:06]} Nc6 $146 {[%emt 0:00:56]} 16. Bxc6 {[%emt 0:00:53]} bxc6 {[%emt 0:00:05]} 17. f3 {[%emt 0:02:24]} Bh3 {[%emt 0:02:57]} 18. Re1 {[%emt 0:00:18]} Rd4 {[%emt 0:03:33]} 19. Nc3 {[%emt 0:03:24]} Re8 {[%emt 0:08:07]} 20. Ne4 {[%emt 0:01:06]} Re5 {[%emt 0:02:22]} (20... Bf5 $5 {[%cal Rf5e4]}) 21. e3 {[%emt 0:01:31]} Rd8 {[%emt 0:01:43]} 22. Kf2 $1 {[%emt 0:04:06]} Bf5 {[%emt 0:09:33]} 23. Nc3 {[%emt 0:01:14]} Rd3 {[%emt 0:03:08]} 24. Na4 {[%emt 0:00:54]} Bc8 {[%emt 0:00:43]} 25. Rad1 {[%emt 0:04:56]} Rexe3 $1 {[%emt 0:01:47]} 26. Rxe3 {[%emt 0:00:30]} Rxd1 {[%emt 0:00:05]} 27. Nxc5 {[%emt 0:00:10]} Bf5 {[%emt 0:01:08]} 28. a4 {[%emt 0:06:55]} h5 {[%emt 0:00:46]} 29. a5 {[%emt 0:09:45]} h4 {[%emt 0:01:31]} 30. a6 {[%emt 0:04:05]} h3 {[%emt 0:03:57]} 31. Re2 {[%emt 0:01:00]} Ra1 {[%emt 0:01:54]} 32. f4 {[%emt 0:07:58]} Ra5 {[%emt 0:12:27]} 33. b4 {[%emt 0:00:24]} Ra1 {[%emt 0:00:04]} 34. Re1 {[%emt 0:03:50]} Ra3 {[%emt 0:03:23]} 35. Re3 $11 {[%emt 0:03:25]} Ra2+ {[%emt 0:01:25]} 36. Re2 {[%emt 0:00:06]} Ra1 {[%emt 0:00:15]} 37. Re1 {[%emt 0:00:54]} Ra2+ {[%emt 0:00:09]} 1/2-1/2

[Event "EYTCC Open U18 2018"]
[Site "Bad Blankeburg"]
[Date "2018.07.14"]
[Round "3"]
[White "Borhy, Marcell"]
[Black "Stevanic, David"]
[Result "0-1"]
[ECO "A05"]
[WhiteElo "2234"]
[BlackElo "2253"]
[Annotator "NA"]
[PlyCount "74"]
[EventDate "2018.07.12"]
[EventType "swiss"]
[EventCountry "GER"]
[SourceTitle "playchess.com"]
[Source "ChessBase"]
[SourceQuality "1"]
[TimeControl "40/5400+30:1800+30"]

1. Nf3 {[%emt 0:00:00]} Nf6 {[%emt 0:00:00]} 2. g3 {[%emt 0:00:04]} d5 {[%emt 0:00:00]} 3. Bg2 {[%emt 0:00:12]} Bg4 {[%emt 0:00:28]} 4. c4 {[%emt 0:00:44]} c6 {[%emt 0:00:36]} 5. cxd5 {[%emt 0:02:12]} cxd5 {[%emt 0:02:36]} 6. Ne5 {[%emt 0:00:07]} Bf5 {[%emt 0:02:48]} 7. Nc3 {[%emt 0:07:00] LiveBook: 106 Games} Nc6 {[%emt 0:06:06]} 8. d4 {[%emt 0:06:06]} Qb6 {[%emt 0:08:33]} 9. Nxc6 {[%emt 0:02:52]} bxc6 {[%emt 0:00:39]} 10. O-O {[%emt 0:01:44]} e6 {[%emt 0:02:46]} 11. Na4 {[%emt 0:11:33]} Qb5 {[%emt 0:02:44]} 12. Bf4 {[%emt 0:03:45]} Be7 {[%emt 0:01:38]} 13. Re1 {[%emt 0:06:48]} O-O {[%emt 0:02:26]} 14. Bf1 {[%emt 0:01:05]} Qb7 {[%emt 0:02:20]} 15. Rc1 $11 {[%emt 0:01:32]} Nd7 {[%emt 0:09:34]} 16. f3 {[%emt 0:05:03]} Rfc8 {[%emt 0:04:12]} 17. Be3 {[%emt 0:07:30]} a5 {[%emt 0:18:09]} 18. a3 {[%emt 0:03:05]} e5 {[%emt 0:06:57]} 19. dxe5 {[%emt 0:11:34]} c5 {[%emt 0:00:05]} 20. f4 {[%emt 0:02:11]} d4 {[%emt 0:03:52]} 21. Bg2 {[%emt 0:00:24]} Qb5 {[%emt 0:02:10]} 22. Bf2 {[%emt 0:04:03]} Be6 {[%emt 0:01:51]} 23. Be4 {[%emt 0:01:31]} Rab8 {[%emt 0:10:11]} 24. Bd3 {[%emt 0:03:21]} Qc6 {[%emt 0:02:38]} 25. Bxd4 {[%emt 0:01:57]} Bb3 {[%emt 0:00:27]} 26. Bc2 {[%emt 0:02:30]} Qxa4 {[%emt 0:00:16]} 27. Bc3 {[%emt 0:00:40]} Bxc2 {[%emt 0:00:42]} 28. Qxc2 {[%emt 0:06:07]} Qb5 {[%emt 0:00:57]} 29. Qf5 {[%emt 0:00:53]} c4 {[%emt 0:01:11]} 30. Qg4 {[%emt 0:00:16]} g6 {[%emt 0:04:19]} 31. e6 {[%emt 0:01:35]} f5 {[%emt 0:00:41]} 32. Qh3 {[%emt 0:01:15]} Nc5 {[%emt 0:01:10]} 33. Qh6 {[%emt 0:02:08]} Bf8 {[%emt 0:00:38]} 34. Qh4 {[%emt 0:00:18]} Ne4 {[%emt 0:00:14]} 35. e7 {[%emt 0:01:14]} Qc5+ {[%emt 0:00:06]} 36. e3 {[%emt 0:00:07]} Bxe7 {[%emt 0:00:29]} 37. Qh3 {[%emt 0:00:38]} Nxc3 {[%emt 0:00:29]} 0-1